bitfinex-derivatives/quotes_BTCF0:USTF0_20241110
["timestamp","ask_amount","ask_price","bid_price","bid_amount"]
[1731240742635,0.1055,79713.0,79695.0,0.00010412]
[1731240742832,0.1055,79713.0,79701.0,0.3608]
[1731240743139,0.3608,79719.0,79708.0,0.3608]
[1731240743529,0.00013053,79722.0,79708.0,0.3608]
[1731240743732,0.00013053,79722.0,79704.0,0.3608]
[1731240744134,0.3608,79719.0,79696.0,0.18912071]
[1731240744350,0.3608,79699.0,79695.0,0.00010412]
[1731240744843,0.3608,79710.0,79695.0,0.00010412]
[1731240745534,0.3608,79710.0,79701.0,0.3608]
[1731240746349,0.00013053,79722.0,79709.0,0.3608]
[1731240746643,0.00013053,79722.0,79720.0,0.3608]
[1731240747444,0.00013053,79722.0,79721.0,0.18416]
[1731240751848,0.00134,79750.0,79721.0,0.54966212]
[1731240752041,0.00134,79750.0,79740.0,0.3608]
[1731240752243,0.00134,79750.0,79741.0,0.1808]
[1731240752638,0.00014939,79748.0,79741.0,0.1808]
[1731240753254,0.00014939,79748.0,79747.0,0.3608]
[1731240755751,0.00014939,79748.0,79740.0,0.2083]
[1731240756049,0.3608,79741.0,79709.0,0.02509311]
[1731240756348,0.3608,79716.0,79709.0,0.02509311]
[1731240756951,0.3608,79713.0,79712.0,0.1808]
[1731240757148,0.3608,79713.0,79709.0,0.02509311]
[1731240757349,0.3608,79713.0,79701.0,0.105]
[1731240757653,0.3608,79713.0,79696.0,0.02509311]
[1731240757654,0.37636,79712.0,79696.0,0.02509311]
[1731240757848,0.37647298,79712.0,79695.0,0.00010412]
[1731240758051,0.7216,79696.0,79695.0,0.00010412]
[1731240758744,0.7216,79696.0,79677.0,0.04982233]
[1731240758745,1.39804,79696.0,79677.0,0.04982233]
[1731240758947,0.3608,79684.0,79677.0,0.04982233]
[1731240759350,0.73728,79684.0,79677.0,0.04982233]
[1731240759653,0.37668124,79683.0,79668.0,0.06227791]
[1731240759853,0.7216,79669.0,79668.0,0.06227791]
[1731240762948,0.7216,79669.0,79667.0,0.18084]
[1731240763856,0.7216,79669.0,79668.0,0.18088]
[1731240765754,0.3608,79669.0,79668.0,0.18088]
[1731240767258,0.36076,79669.0,79668.0,0.18088]
[1731240767967,0.3608,79674.0,79668.0,0.55744]
[1731240768260,0.00016124,79683.0,79669.0,0.2132]
[1731240769360,0.3608,79675.0,79669.0,0.1083]
[1731240769560,0.3608,79675.0,79670.0,0.18088]
[1731240770461,0.00016124,79683.0,79670.0,0.18088]
[1731240771359,0.3608,79696.0,79676.0,0.3608]
[1731240771557,0.3608,79703.0,79676.0,0.3608]
[1731240771757,0.3608,79703.0,79677.0,0.18848713]
[1731240772157,0.3608,79695.0,79677.0,0.18848713]
[1731240772451,0.00013752,79684.0,79676.0,0.3608]
[1731240773567,0.00013752,79684.0,79670.0,0.23132376]
[1731240773568,0.00013752,79684.0,79677.0,0.18088]
[1731240773957,0.00013752,79684.0,79669.0,0.1083]
[1731240774160,0.00013752,79684.0,79670.0,0.17332]
[1731240774461,0.3608,79677.0,79668.0,0.17332]
[1731240774668,0.3608,79669.0,79668.0,0.17332]
[1731240774966,0.3608,79669.0,79653.0,0.00010216]
[1731240775166,0.3608,79659.0,79653.0,0.00010216]
[1731240777663,0.7374,79659.0,79653.0,0.00010216]
[1731240778171,0.3766,79658.0,79624.0,0.1064]
[1731240778466,0.3608,79628.0,79625.0,0.17336]
[1731240778666,0.3608,79628.0,79622.0,0.00188357]
[1731240778860,0.3608,79628.0,79617.0,0.17336]
[1731240778861,0.3608,79627.0,79617.0,0.17336]
[1731240779056,0.3608,79618.0,79617.0,0.17336]
[1731240779252,0.00011611,79618.0,79617.0,0.17336]
[1731240779862,1.1e-07,79618.0,79615.0,0.44703723]
[1731240780062,1.1e-07,79618.0,79616.0,0.17336]
[1731240780462,1.1e-07,79618.0,79617.0,0.3768]
[1731240781965,1.1e-07,79618.0,79616.0,0.17336]
[1731240782262,1.1e-07,79618.0,79613.0,0.4736]
[1731240782459,1.1e-07,79618.0,79614.0,0.1734]
[1731240783162,0.3608,79630.0,79614.0,0.5502]
[1731240783368,0.3608,79630.0,79614.0,0.19851723]
[1731240783564,0.3608,79637.0,79614.0,0.19851723]
[1731240784265,0.0001577,79624.0,79614.0,0.22363843]
[1731240785371,0.0001577,79624.0,79615.0,0.1734]
[1731240785560,0.0001577,79624.0,79615.0,0.2857]
[1731240785962,0.3608,79637.0,79621.0,0.3608]
[1731240786257,0.3608,79649.0,79628.0,0.3608]
[1731240786573,0.3608,79635.0,79629.0,0.1734]
[1731240787068,0.00012726,79632.0,79629.0,0.1734]
[1731240787570,0.00012726,79632.0,79630.0,0.1734]
[1731240788466,0.00012726,79632.0,79631.0,0.1734]
[1731240788657,0.00012726,79632.0,79625.0,0.1734]
[1731240788861,0.3608,79626.0,79614.0,0.0251212]
[1731240789065,0.3608,79616.0,79615.0,0.1734]
[1731240789369,0.3608,79616.0,79614.0,0.0251212]
[1731240789671,0.3608,79616.0,79614.0,0.1985212]
[1731240789865,0.3608,79626.0,79614.0,0.1985212]
[1731240791367,0.00012726,79632.0,79615.0,0.17344]
[1731240792467,0.3608,79628.0,79615.0,0.17344]
[1731240794177,0.3608,79628.0,79620.0,0.3608]
[1731240794665,0.3608,79621.0,79614.0,0.0251212]
[1731240794861,0.3608,79628.0,79615.0,0.17344]
[1731240795071,0.3608,79621.0,79615.0,0.17344]
[1731240796272,0.1108,79631.0,79614.0,0.3859212]
[1731240796474,0.3608,79629.0,79615.0,0.17344]
[1731240796772,0.3608,79629.0,79616.0,0.17344]
[1731240797163,0.3608,79629.0,79614.0,0.0251212]
[1731240797364,0.3608,79619.0,79614.0,0.0251212]
[1731240797580,0.3608,79619.0,79600.0,0.17344]
[1731240797581,0.3608,79615.0,79600.0,0.17344]
[1731240797875,0.3608,79615.0,79594.0,0.17344]
[1731240798065,0.3608,79601.0,79594.0,0.17344]
[1731240798265,0.3608,79597.0,79571.0,0.42216]
[1731240798478,0.3608,79587.0,79575.0,0.17344]
[1731240798675,0.36090541,79587.0,79575.0,0.17344]
[1731240798874,0.36090541,79587.0,79578.0,0.02512561]
[1731240799576,0.36090541,79587.0,79575.0,0.17344]
[1731240799877,0.36090541,79587.0,79576.0,0.3608]
[1731240800176,4.1e-07,79587.0,79584.0,0.3608]
[1731240800373,4.1e-07,79587.0,79586.0,0.86628545]
[1731240800565,0.3608,79621.0,79586.0,0.91753666]
[1731240800769,0.3608,79621.0,79604.0,0.3608]
[1731240800968,0.3608,79621.0,79605.0,0.16604]
[1731240801569,0.00012312,79618.0,79605.0,0.16604]
[1731240802186,0.00012312,79618.0,79606.0,0.16604]
[1731240803676,0.00012312,79618.0,79607.0,0.16604]
[1731240805473,0.00012312,79618.0,79612.0,0.3608]
[1731240805673,0.00012312,79618.0,79613.0,0.1083]
[1731240809785,0.3608,79614.0,79600.0,0.16604]
[1731240809976,0.3608,79614.0,79601.0,0.16604]
[1731240810181,0.3608,79614.0,79602.0,0.16604]
[1731240810380,0.3608,79614.0,79603.0,0.16604]
[1731240810683,0.3608,79614.0,79591.0,0.3608]
[1731240810684,0.3608,79605.0,79591.0,0.3608]
[1731240810885,0.3608,79598.0,79592.0,0.16604]
[1731240811480,0.3608,79598.0,79587.0,0.1122]
[1731240811481,0.3608,79598.0,79593.0,0.16604]
[1731240811988,0.3608,79598.0,79581.0,0.42224]
[1731240812675,0.3608,79598.0,79581.0,0.78304]
[1731240813080,0.3608,79605.0,79581.0,0.78304]
[1731240813285,0.3608,79605.0,79589.0,0.3608]
[1731240813881,0.6608,79605.0,79589.0,0.3608]
[1731240814080,0.3608,79594.0,79574.0,0.10512171]
[1731240814277,0.3608,79585.0,79574.0,0.10512171]
[1731240814475,0.3608,79594.0,79574.0,0.10512171]
[1731240814682,0.3608,79585.0,79574.0,0.10512171]
[1731240815184,0.3608,79585.0,79575.0,0.16604]
[1731240815483,0.3608,79585.0,79576.0,0.16604]
[1731240816084,0.3608,79577.0,79574.0,0.00012171]
[1731240816389,0.3608,79580.0,79574.0,0.16616171]
[1731240818483,0.3608,79580.0,79574.0,0.00012171]
[1731240818682,9.356e-05,79579.0,79574.0,0.00012171]
[1731240820988,0.377,79578.0,79555.0,0.02513984]
[1731240821188,0.3608,79563.0,79555.0,0.19121984]
[1731240821491,0.3608,79563.0,79555.0,0.02513984]
[1731240821684,0.3608,79569.0,79556.0,0.16608]
[1731240822783,9.356e-05,79579.0,79556.0,0.16608]
[1731240823388,0.3608,79573.0,79556.0,0.16608]
[1731240824890,0.3608,79573.0,79561.0,0.3608]
[1731240825080,0.3608,79573.0,79555.0,0.02523918]
[1731240825081,9.356e-05,79579.0,79555.0,0.02523918]
[1731240825286,9.356e-05,79579.0,79524.0,0.09964467]
[1731240825494,9.356e-05,79579.0,79513.0,0.12229897]
[1731240825694,0.1026,79601.0,65366.0,0.10845181]
[1731240825695,0.3608,79489.0,79451.0,0.04399792]
[1731240825991,0.3608,79396.0,79373.0,0.01560978]
[1731240826191,0.3608,79384.0,79374.0,0.00393686]
[1731240826387,0.30948,79375.0,79371.0,0.37555057]
[1731240826593,0.262897,79375.0,79372.0,0.00407615]
[1731240826789,0.3608,79373.0,79372.0,0.00013944]
[1731240826985,0.39489784,79373.0,79372.0,0.18815311]
[1731240827181,0.75569784,79373.0,79372.0,0.00013944]
[1731240827489,0.39489784,79373.0,79372.0,0.18806188]
[1731240827690,0.39489784,79373.0,79372.0,0.00013944]
[1731240827892,0.77285784,79373.0,79372.0,0.00013944]
[1731240828222,0.39489784,79373.0,79372.0,0.00013944]
[1731240828719,0.03409784,79373.0,79372.0,0.00013944]
[1731240828919,0.03409784,79373.0,79372.0,0.18822933]
[1731240829114,0.03409784,79373.0,79372.0,0.00013944]
[1731240829512,0.3608,79383.0,79372.0,0.86792218]
[1731240829813,0.3608,79383.0,79372.0,0.48996218]
[1731240830216,0.3608,79383.0,79372.0,0.18996218]
[1731240830421,9.077e-05,79386.0,79376.0,0.3608]
[1731240830630,0.3608,79418.0,79385.0,0.3608]
[1731240830816,0.00128,79467.0,79385.0,0.6608]
[1731240831009,0.3,79467.0,79386.0,0.19012216]
[1731240831222,0.3608,79446.0,79434.0,0.3608]
[1731240831425,0.3,79446.0,79434.0,0.26003478]
[1731240831630,0.37774619,79445.0,79434.0,0.26003478]
[1731240831827,0.37774619,79445.0,79427.0,0.3608]
[1731240832021,0.3608,79430.0,79419.0,0.3608]
[1731240832326,0.3608,79420.0,79404.0,0.3608]
[1731240832519,0.3608,79410.0,79404.0,0.3608]
[1731240832724,0.3608,79410.0,79394.0,0.3608]
[1731240832919,0.6608,79410.0,79394.0,0.3608]
[1731240833117,0.3,79410.0,79394.0,0.3608]
[1731240833327,0.3608,79420.0,79401.0,0.3608]
[1731240833523,0.6608,79420.0,79401.0,0.3608]
[1731240833725,0.01036,79413.0,79401.0,0.3608]
[1731240833921,0.3608,79406.0,79384.0,0.3608]
[1731240834123,9.389e-05,79412.0,79394.0,0.3608]
[1731240834315,9.389e-05,79412.0,79408.0,0.3608]
[1731240835218,0.3778,79411.0,79408.0,0.3608]
[1731240835630,0.3778,79410.0,79388.0,0.3608]
[1731240835831,0.3608,79406.0,79388.0,0.3608]
[1731240836325,0.36089389,79412.0,79400.0,0.3608]
[1731240836524,9.389e-05,79412.0,79409.0,0.3608]
[1731240836928,9.389e-05,79412.0,79411.0,0.3608]
[1731240837423,0.3608,79429.0,79411.0,0.3608]
[1731240837614,0.3608,79421.0,79413.0,0.3608]
[1731240837813,0.3608,79423.0,79413.0,0.3608]
[1731240838020,0.3608,79415.0,79399.0,0.3608]
[1731240838224,0.3608,79400.0,79390.0,0.3608]
[1731240838427,8.859e-05,79414.0,79398.0,0.3608]
[1731240839520,0.30008859,79414.0,79398.0,0.3608]
[1731240839916,0.05115418,79414.0,79398.0,0.3608]
[1731240840118,0.35115418,79414.0,79398.0,0.3608]
[1731240840322,0.05115418,79414.0,79398.0,0.3608]
[1731240840920,0.05115418,79414.0,79398.0,0.02518955]
[1731240841224,0.72895418,79414.0,79398.0,0.02518955]
[1731240841429,0.3608,79408.0,79398.0,0.02518955]
[1731240841637,0.05247418,79414.0,79401.0,0.3608]
[1731240841824,0.05115418,79414.0,79401.0,0.3608]
[1731240842021,8.859e-05,79414.0,79409.0,0.3608]
[1731240842420,0.37776,79413.0,79409.0,0.3608]
[1731240842721,8.859e-05,79414.0,79411.0,0.3608]
[1731240844605,0.37776,79413.0,79411.0,0.3608]
[1731240845103,8.859e-05,79414.0,79411.0,0.3608]
[1731240846110,5.9e-07,79414.0,79411.0,0.3608]
[1731240846301,5.9e-07,79414.0,79412.0,0.56634634]
[1731240846606,0.3608,79450.0,79412.0,0.56634634]
[1731240846908,0.3608,79450.0,79434.0,0.3608]
[1731240847608,0.00013384,79449.0,79434.0,0.3608]
[1731240847906,0.00013384,79449.0,79443.0,0.3608]
[1731240848098,0.00013384,79449.0,79434.0,0.3608]
[1731240848708,0.00013384,79449.0,79446.0,0.3608]
[1731240852009,0.3608,79474.0,79446.0,0.3608]
[1731240852205,0.3608,79474.0,79456.0,0.3608]
[1731240852513,0.05531612,79481.0,79456.0,0.3608]
[1731240852709,0.04973089,79481.0,79463.0,0.3608]
[1731240852906,0.3608,79484.0,79463.0,0.3608]
[1731240853103,0.00011308,79468.0,79463.0,0.3608]
[1731240853504,0.3608,79466.0,79444.0,0.3608]
[1731240854208,0.00011308,79468.0,79453.0,0.3608]
[1731240855011,0.05133494,79468.0,79453.0,0.3608]
[1731240855214,0.3608,79460.0,79444.0,0.3608]
[1731240855405,0.3608,79450.0,79435.0,0.3608]
[1731240855605,0.18339257,79449.0,79435.0,0.3608]
[1731240855801,0.18339257,79448.0,79435.0,0.3608]
[1731240856111,0.18339257,79447.0,79435.0,0.31653189]
[1731240856300,0.18339257,79446.0,79442.0,0.3608]
[1731240856506,0.3608,79460.0,79442.0,0.3608]
[1731240856507,0.18214647,79445.0,79442.0,0.3608]
[1731240856704,0.1200232,79444.0,79442.0,0.3608]
[1731240856908,0.1200232,79443.0,79442.0,0.3608]
[1731240857112,0.16604968,79443.0,79425.0,0.3626882]
[1731240857306,0.3608,79445.0,79425.0,0.3626882]
[1731240857307,0.3608,79433.0,79425.0,0.3626882]
[1731240857506,0.54295243,79433.0,79425.0,0.0018882]
[1731240858103,0.53626347,79433.0,79425.0,0.0018882]
[1731240859612,0.91406036,79433.0,79404.0,0.3608]
[1731240859820,0.3608,79422.0,79404.0,0.3608]
[1731240860007,0.09887226,79421.0,79404.0,0.3608]
[1731240860210,0.09887226,79420.0,79404.0,0.3608]
[1731240860409,0.00012803,79406.0,79404.0,0.3608]
[1731240860610,0.04575202,79405.0,79404.0,0.3608]
[1731240860809,0.04575202,79405.0,79404.0,0.36095766]
[1731240861319,0.04575202,79405.0,79404.0,0.00015766]
[1731240861519,0.05211407,79405.0,79404.0,0.00015766]
[1731240861724,0.00012803,79406.0,79404.0,0.37795766]
[1731240861917,0.3608,79424.0,79405.0,0.3778]
[1731240862117,0.12888356,79423.0,79404.0,0.00015766]
[1731240862323,0.06899565,79422.0,79404.0,0.00015766]
[1731240862517,0.06899565,79421.0,79404.0,0.00015766]
[1731240862819,9.333e-05,79416.0,79410.0,0.3608]
[1731240863013,9.333e-05,79416.0,79411.0,0.30204]
[1731240863212,9.333e-05,79416.0,79411.0,0.49139611]
[1731240863616,9.333e-05,79416.0,79408.0,0.00064]
[1731240863821,9.333e-05,79416.0,79412.0,0.3608]
[1731240865026,0.06924315,79415.0,79412.0,0.3608]
[1731240865212,0.06924315,79414.0,79412.0,0.3608]
[1731240865413,0.06924315,79413.0,79412.0,0.3608]
[1731240865821,0.05254542,79413.0,79412.0,0.3608]
[1731240866211,0.05254542,79413.0,79404.0,0.3861453]
[1731240866212,0.43131885,79413.0,79404.0,0.3861453]
[1731240866416,0.43131885,79413.0,79404.0,0.0253453]
[1731240866417,0.3608,79405.0,79404.0,0.0253453]
[1731240866614,0.43131885,79405.0,79404.0,0.00748027]
[1731240866827,0.07051885,79405.0,79404.0,0.00748027]
[1731240867225,0.05254542,79405.0,79404.0,0.00748027]
[1731240867829,0.05178667,79405.0,79404.0,0.00748027]
[1731240868019,0.06938171,79405.0,79404.0,0.00748027]
[1731240869524,0.01759504,79405.0,79404.0,0.36828027]
[1731240869724,0.01759504,79405.0,79404.0,0.65880027]
[1731240869925,9.333e-05,79416.0,79404.0,1.22556208]
[1731240870130,0.05259273,79415.0,79405.0,0.1016]
[1731240870324,9.333e-05,79416.0,79414.0,0.3608]
[1731240870624,0.11152967,79415.0,79414.0,0.3608]
[1731240871622,0.11152967,79415.0,79406.0,0.29052]
[1731240871828,0.15620618,79415.0,79404.0,0.36828027]
[1731240872124,0.15583069,79414.0,79404.0,0.65880027]
[1731240872322,0.09677115,79413.0,79404.0,0.65880027]
[1731240872526,0.09677115,79412.0,79404.0,0.65880027]
[1731240872729,0.36089333,79416.0,79404.0,0.65880027]
[1731240873825,9.333e-05,79416.0,79404.0,0.65880027]
[1731240874520,9.333e-05,79416.0,79404.0,0.36828027]
[1731240874521,0.05076828,79415.0,79404.0,0.36828027]
[1731240874724,0.05076828,79414.0,79404.0,0.36828027]
[1731240875018,0.05076828,79413.0,79404.0,0.36828027]
[1731240875221,0.36089333,79416.0,79404.0,0.36828027]
[1731240875222,0.05076828,79412.0,79404.0,0.36828027]
[1731240875521,0.05076828,79411.0,79404.0,0.36828027]
[1731240875717,0.3608,79407.0,79404.0,0.00748027]
[1731240876930,0.04978789,79406.0,79404.0,0.00244397]
[1731240877121,9.333e-05,79416.0,79404.0,0.00244397]
[1731240877527,9.333e-05,79416.0,79414.0,0.3608]
[1731240878417,3.3e-07,79416.0,79415.0,0.56734903]
[1731240878827,3.3e-07,79416.0,79415.0,0.86734903]
[1731240879533,3.3e-07,79416.0,79415.0,0.56734903]
[1731240879725,3.3e-07,79416.0,79415.0,0.86734903]
[1731240880629,3.3e-07,79416.0,79415.0,0.90863276]
[1731240881028,0.3608,79466.0,79415.0,0.90863276]
[1731240881224,0.3608,79450.0,79431.0,0.3608]
[1731240881527,0.13370196,79445.0,79432.0,0.47018382]
[1731240881725,0.05247576,79444.0,79432.0,0.47018382]
[1731240881926,0.00015644,79448.0,79432.0,0.47018382]
[1731240882126,0.05240239,79447.0,79432.0,0.47018382]
[1731240882332,0.09745261,79446.0,79432.0,0.47018382]
[1731240882530,0.09745261,79445.0,79432.0,0.28156]
[1731240882734,0.09745261,79444.0,79432.0,0.28156]
[1731240883031,0.09745261,79443.0,79432.0,0.28156]
[1731240883231,0.00015644,79448.0,79432.0,0.28156]
[1731240883232,0.09745261,79442.0,79432.0,0.28156]
[1731240883529,0.04175022,79441.0,79433.0,0.18830207]
[1731240883830,0.00015644,79448.0,79440.0,0.3608]
[1731240884034,0.00015644,79448.0,79432.0,0.2822]
[1731240884232,0.00015644,79448.0,79434.0,0.3608]
[1731240884537,0.11156725,79447.0,79434.0,0.3608]
[1731240884826,0.00015644,79448.0,79418.0,0.27268]
[1731240884827,0.3608,79435.0,79418.0,0.27268]
[1731240885029,0.11044778,79434.0,79418.0,0.27268]
[1731240885231,0.05222802,79433.0,79418.0,0.27268]
[1731240885437,0.05222802,79432.0,79418.0,0.27268]
[1731240885636,0.05222802,79431.0,79418.0,0.27268]
[1731240885834,0.05222802,79430.0,79418.0,0.27268]
[1731240886136,0.05222802,79429.0,79418.0,0.22860018]
[1731240886336,0.41184823,79428.0,79417.0,0.3608]
[1731240886633,0.05104823,79427.0,79407.0,0.3608]
[1731240886828,0.05104823,79426.0,79407.0,0.3608]
[1731240887031,0.3608,79428.0,79407.0,0.3608]
[1731240887234,0.3608,79444.0,79427.0,0.3608]
[1731240887437,0.3608,79444.0,79428.0,0.27268]
[1731240887644,0.3608,79444.0,79429.0,0.27268]
[1731240888836,0.3608,79444.0,79433.0,0.3608]
[1731240889037,0.3608,79439.0,79429.0,0.27268]
[1731240889435,0.3608,79439.0,79426.0,0.27268]
[1731240890442,0.3608,79438.0,79426.0,0.27268]
[1731240890733,0.04125347,79448.0,79426.0,0.27268]
[1731240891241,0.3608,79438.0,79426.0,0.27268]
[1731240891539,0.04125347,79448.0,79426.0,0.27268]
[1731240892346,0.04125347,79448.0,79432.0,0.3608]
[1731240892534,0.3608,79444.0,79432.0,0.3608]
[1731240892729,0.00015644,79448.0,79440.0,0.3608]
[1731240892939,0.00015644,79448.0,79447.0,0.3608]
[1731240892940,4.4e-07,79448.0,79447.0,0.3608]
[1731240893140,4.4e-07,79448.0,79447.0,0.62456]
[1731240894841,0.3608,79475.0,79447.0,1.00216]
[1731240895041,0.05299095,79474.0,79460.0,0.3608]
[1731240895236,0.3608,79484.0,79460.0,0.3608]
[1731240895237,0.05322874,79473.0,79460.0,0.3608]
[1731240895434,0.05322874,79472.0,79460.0,0.3608]
[1731240895636,0.40130171,79484.0,79460.0,0.3608]
[1731240895839,6.071e-05,79462.0,79460.0,0.3608]
[1731240896446,7.1e-07,79462.0,79461.0,0.6132425]
[1731240897040,7.1e-07,79462.0,79461.0,0.9908025]
[1731240897639,7.1e-07,79462.0,79461.0,1.2908025]
[1731240897841,7.1e-07,79462.0,79461.0,1.4027025]
[1731240898147,7.1e-07,79462.0,79461.0,1.1027025]
[1731240898646,7.1e-07,79462.0,79461.0,1.4027025]
[1731240899245,7.1e-07,79462.0,79461.0,1.44253563]
[1731240899547,7.1e-07,79462.0,79461.0,1.14253563]
[1731240899845,7.1e-07,79462.0,79461.0,1.44253563]
[1731240900242,7.1e-07,79462.0,79461.0,1.14253563]
[1731240900644,7.1e-07,79462.0,79461.0,0.67772]
[1731240900847,7.1e-07,79462.0,79461.0,1.03852]
[1731240901643,7.1e-07,79462.0,79461.0,1.60604494]
[1731240901846,7.1e-07,79462.0,79461.0,1.90604494]
[1731240903247,7.1e-07,79462.0,79461.0,1.35160494]
[1731240903434,7.1e-07,79462.0,79461.0,1.03848]
[1731240903636,7.1e-07,79462.0,79446.0,0.00015999]
[1731240903840,0.3608,79450.0,79447.0,0.2544]
[1731240905239,0.7384,79450.0,79436.0,0.3608]
[1731240905436,0.3608,79450.0,79436.0,0.3608]
[1731240905636,0.04398676,79449.0,79436.0,0.3608]
[1731240905841,0.3608,79450.0,79436.0,0.3608]
[1731240906040,0.04402268,79449.0,79436.0,0.3608]
[1731240906240,0.04397622,79448.0,79436.0,0.3608]
[1731240906444,0.33563042,79450.0,79436.0,0.3608]
[1731240906644,0.3608,79437.0,79435.0,0.00014531]
[1731240907042,0.37768,79436.0,79435.0,0.00014531]
[1731240907447,0.42117847,79436.0,79435.0,0.00014531]
[1731240907745,0.42117847,79436.0,79418.0,0.6152]
[1731240907746,0.42117514,79436.0,79418.0,0.6152]
[1731240907943,0.3608,79437.0,79418.0,0.36144]
[1731240907944,0.3608,79430.0,79418.0,0.36144]
[1731240908245,0.3608,79430.0,79418.0,0.3608]
[1731240908645,0.3608,79445.0,79418.0,0.3608]
[1731240908846,0.3608,79445.0,79434.0,0.3608]
[1731240908847,0.0432917,79444.0,79434.0,0.3608]
[1731240909148,0.3608,79445.0,79434.0,0.3608]
[1731240909355,0.04389466,79444.0,79434.0,0.3608]
[1731240909647,0.04098072,79449.0,79443.0,0.3608]
[1731240910044,0.04098072,79449.0,79437.0,0.24516]
[1731240910045,0.3608,79447.0,79437.0,0.24516]
[1731240910557,0.42182882,79446.0,79437.0,0.24516]
[1731240910744,0.3608,79438.0,79423.0,0.36268816]
[1731240911148,0.3608,79438.0,79408.0,0.36273]
[1731240911149,0.7216,79430.0,79408.0,0.10834999]
[1731240911343,0.62288,79437.0,79398.0,0.01919916]
[1731240911344,0.7216,79414.0,79398.0,0.01919916]
[1731240911649,0.3608,79399.0,79398.0,0.01919916]
[1731240912064,0.3608,79407.0,79398.0,0.01919916]
[1731240912246,0.3608,79407.0,79404.0,8.964e-05]
[1731240913356,0.3608,79414.0,79404.0,8.964e-05]
[1731240913848,0.3608,79414.0,79405.0,0.18858618]
[1731240915857,0.00016224,79419.0,79405.0,0.18858618]
[1731240916055,0.3608,79415.0,79405.0,0.18858618]
[1731240916250,0.3608,79408.0,79404.0,8.964e-05]
[1731240916445,0.3608,79408.0,79403.0,0.24524]
[1731240917452,0.3608,79408.0,79404.0,0.00013483]
[1731240919757,0.3608,79405.0,79404.0,0.00013483]
[1731240920959,0.37784,79404.0,79374.0,0.23668]
[1731240921150,0.3608,79390.0,79374.0,0.23668]
[1731240921353,0.3608,79390.0,79377.0,0.189234]
[1731240921552,0.3608,79390.0,79375.0,0.189234]
[1731240921754,0.3608,79390.0,79374.0,0.23668]
[1731240921955,0.3608,79397.0,79386.0,0.3608]
[1731240922358,0.3608,79397.0,79387.0,0.18923198]
[1731240922562,0.3608,79388.0,79380.0,0.02518615]
[1731240922752,0.3608,79395.0,79380.0,0.02518615]
[1731240923962,0.3608,79395.0,79386.0,0.3608]
[1731240924257,0.3608,79395.0,79387.0,0.18927271]
[1731240924558,0.3608,79404.0,79387.0,0.18927271]
[1731240924966,0.3608,79404.0,79394.0,0.3608]
[1731240925264,0.3608,79413.0,79395.0,0.5362335]
[1731240925854,0.3608,79403.0,79395.0,0.23672]
[1731240928267,0.3608,79413.0,79396.0,0.18881311]
[1731240928560,0.3608,79404.0,79396.0,0.18881311]
[1731240929063,0.3608,79405.0,79396.0,0.18881311]
[1731240931267,0.3608,79405.0,79395.0,0.23672]
[1731240932664,0.3608,79413.0,79396.0,0.18978253]
[1731240932970,0.3608,79403.0,79395.0,0.23672]
[1731240933556,0.3608,79403.0,79396.0,0.19000941]
[1731240934856,0.3608,79413.0,79396.0,0.19000941]
[1731240935077,0.04301299,79412.0,79396.0,0.19000941]
[1731240935260,0.3608,79413.0,79397.0,0.105]
[1731240935463,0.00016224,79419.0,79407.0,0.3608]
[1731240935664,0.00016224,79419.0,79416.0,0.3608]
[1731240935870,0.3608,79443.0,79418.0,0.3608]
[1731240936174,0.3608,79443.0,79429.0,0.3608]
[1731240936175,0.04416507,79442.0,79429.0,0.3608]
[1731240936466,0.04416507,79441.0,79430.0,0.29492482]
[1731240936667,0.3608,79443.0,79430.0,0.29492482]
[1731240936969,0.00014422,79438.0,79431.0,0.21952]
[1731240937166,0.3608,79432.0,79431.0,0.21952]
[1731240937560,0.00014422,79438.0,79431.0,0.21952]
[1731240937767,0.00014422,79438.0,79437.0,0.3608]
[1731240938069,0.00014422,79438.0,79433.0,0.3608]
[1731240941475,0.3608,79468.0,79434.0,0.18878729]
[1731240941679,0.03760621,79471.0,79462.0,0.3608]
[1731240941864,0.03760621,79471.0,79463.0,0.21944]
[1731240942369,0.00010002,79468.0,79463.0,0.21944]
[1731240942573,0.00010002,79468.0,79464.0,0.00013079]
[1731240943565,0.3608,79465.0,79464.0,0.00013079]
[1731240943765,0.00010002,79468.0,79464.0,0.00013079]
[1731240944170,0.3608,79465.0,79464.0,0.00013079]
[1731240944374,0.00010002,79468.0,79464.0,0.00013079]
[1731240944962,0.3608,79465.0,79464.0,0.00013079]
[1731240945165,0.00010002,79468.0,79464.0,0.36093079]
[1731240945893,0.4682,79495.0,79465.0,0.18896385]
[1731240946178,0.16097989,79494.0,79473.0,0.3608]
[1731240946375,0.50616108,79495.0,79474.0,0.21132]
[1731240946376,0.3608,79488.0,79474.0,0.21132]
[1731240946673,0.7216,79480.0,79464.0,0.00013079]
[1731240946870,0.3608,79471.0,79464.0,0.00013079]
[1731240947079,0.04621688,79470.0,79464.0,0.00013079]
[1731240947375,0.3608,79471.0,79464.0,3.885e-05]
[1731240947376,0.04621688,79469.0,79464.0,3.885e-05]
[1731240947579,0.3608,79471.0,79464.0,3.885e-05]
[1731240947580,0.04621688,79468.0,79464.0,3.885e-05]
[1731240947771,0.04621688,79467.0,79464.0,3.885e-05]
[1731240947977,0.04621688,79466.0,79464.0,3.885e-05]
[1731240948179,0.04621688,79465.0,79464.0,3.885e-05]
[1731240948672,0.42373688,79465.0,79464.0,3.885e-05]
[1731240949471,0.04621688,79465.0,79464.0,3.885e-05]
[1731240949971,0.42373688,79465.0,79464.0,3.885e-05]
[1731240951274,0.42373688,79465.0,79447.0,0.4232]
[1731240951275,1.13664742,79465.0,79448.0,0.21132]
[1731240951575,0.3608,79455.0,79448.0,0.21132]
[1731240951878,0.04429284,79454.0,79448.0,0.21132]
[1731240952179,0.04429284,79453.0,79449.0,9.991e-05]
[1731240952473,0.04429284,79452.0,79449.0,9.991e-05]
[1731240952776,0.09516909,79451.0,79423.0,0.23651415]
[1731240952974,0.3608,79443.0,79423.0,0.23651415]
[1731240953164,0.3608,79433.0,79423.0,0.23651415]
[1731240953578,0.3608,79433.0,79424.0,0.00015931]
[1731240954076,0.3608,79443.0,79429.0,0.3608]
[1731240954265,0.04400782,79442.0,79429.0,0.3608]
[1731240954472,0.04400782,79441.0,79429.0,0.3608]
[1731240954671,0.3608,79443.0,79429.0,0.3608]